[Event "*** Titled Tuesday Blitz"]
[Site "Chess.com"]
[Date "2020.05.12"]
[Round "3"]
[White "Diego_FloresQ"]
[Black "nubair1198"]
[Result "1-0"]
[WhiteElo "2439"]
[BlackElo "2698"]
[TimeControl "180+1"]
[EndTime "10:29:03 PDT"]
[Termination "Diego_FloresQ won on time"]

1. e4 {[%clk 0:03:00.9]} 1... g6 {[%clk 0:02:57.1]} 2. d4 {[%clk 0:03:01]} 2...
Bg7 {[%clk 0:02:57.4]} 3. Nc3 {[%clk 0:03:01.7]} 3... c6 {[%clk 0:02:57.8]} 4.
f4 {[%clk 0:03:01.8]} 4... d5 {[%clk 0:02:57.9]} 5. e5 {[%clk 0:03:02]} 5... Nh6
{[%clk 0:02:58.5]} 6. Nf3 {[%clk 0:03:01.2]} 6... f6 {[%clk 0:02:59]} 7. Be3
{[%clk 0:02:58.3]} 7... O-O {[%clk 0:02:59.5]} 8. h3 {[%clk 0:02:35.1]} 8...
fxe5 {[%clk 0:02:54.6]} 9. dxe5 {[%clk 0:02:33.3]} 9... Nf5 {[%clk 0:02:50.8]}
10. Bf2 {[%clk 0:02:32.7]} 10... e6 {[%clk 0:02:45.5]} 11. Bd3 {[%clk
0:02:31.1]} 11... Nd7 {[%clk 0:02:41.7]} 12. Ne2 {[%clk 0:02:07.5]} 12... Qa5+
{[%clk 0:02:29.4]} 13. c3 {[%clk 0:02:07.1]} 13... Nc5 {[%clk 0:02:28.1]} 14.
Bc2 {[%clk 0:02:05.8]} 14... Ne4 {[%clk 0:02:27.1]} 15. O-O {[%clk 0:02:03.8]}
15... Nxf2 {[%clk 0:02:25.6]} 16. Rxf2 {[%clk 0:01:58.6]} 16... Ne3 {[%clk
0:02:24.2]} 17. Qd2 {[%clk 0:01:58.9]} 17... Nxc2 {[%clk 0:02:16.4]} 18. Qxc2
{[%clk 0:01:59.8]} 18... c5 {[%clk 0:02:16.9]} 19. c4 {[%clk 0:01:49.9]} 19...
Bd7 {[%clk 0:02:12.9]} 20. Nc3 {[%clk 0:01:46.3]} 20... Bc6 {[%clk 0:02:05.3]}
21. Ng5 {[%clk 0:01:43.7]} 21... Rae8 {[%clk 0:01:52.8]} 22. Nxe6 {[%clk
0:01:40.1]} 22... d4 {[%clk 0:01:44.4]} 23. Nxg7 {[%clk 0:01:28.7]} 23... Kxg7
{[%clk 0:01:45.3]} 24. Nd5 {[%clk 0:01:27.2]} 24... Qd8 {[%clk 0:01:40.6]} 25.
Nf6 {[%clk 0:01:26.2]} 25... Rxf6 {[%clk 0:01:41.1]} 26. exf6+ {[%clk
0:01:25.7]} 26... Qxf6 {[%clk 0:01:42]} 27. Qd2 {[%clk 0:01:23]} 27... Qe6
{[%clk 0:00:54.4]} 28. f5 {[%clk 0:00:59.3]} 28... Qe3 {[%clk 0:00:27.8]} 29.
fxg6 {[%clk 0:00:52.7]} 29... hxg6 {[%clk 0:00:26.7]} 30. Qxe3 {[%clk 0:00:51]}
30... Rxe3 {[%clk 0:00:24.3]} 31. Rd2 {[%clk 0:00:46.8]} 31... g5 {[%clk
0:00:19.3]} 32. Kf2 {[%clk 0:00:46.9]} 32... g4 {[%clk 0:00:18.7]} 33. hxg4
{[%clk 0:00:43.7]} 33... Re4 {[%clk 0:00:19.1]} 34. Re1 {[%clk 0:00:39.2]} 34...
Rxg4 {[%clk 0:00:19]} 35. Kg1 {[%clk 0:00:39.8]} 35... Kf7 {[%clk 0:00:18.3]}
36. b3 {[%clk 0:00:37.4]} 36... a5 {[%clk 0:00:17.7]} 37. Rf2+ {[%clk
0:00:36.6]} 37... Kg6 {[%clk 0:00:16.6]} 38. Re5 {[%clk 0:00:37.1]} 38... Rg5
{[%clk 0:00:07.1]} 39. Rxg5+ {[%clk 0:00:29.2]} 39... Kxg5 {[%clk 0:00:08]} 40.
Kf1 {[%clk 0:00:29.1]} 40... Be4 {[%clk 0:00:08]} 41. Ke2 {[%clk 0:00:27.1]}
41... Kg4 {[%clk 0:00:04]} 42. Kd2 {[%clk 0:00:21.7]} 42... Kg3 {[%clk
0:00:04.1]} 43. Rf8 {[%clk 0:00:20.4]} 43... Kxg2 {[%clk 0:00:03.3]} 44. Rc8
{[%clk 0:00:20.6]} 44... Bc6 {[%clk 0:00:03.3]} 45. Ra8 {[%clk 0:00:20]} 45...
a4 {[%clk 0:00:03.8]} 46. bxa4 {[%clk 0:00:19]} 46... Kf3 {[%clk 0:00:04.4]} 47.
Rh8 {[%clk 0:00:16.1]} 47... Bxa4 {[%clk 0:00:02.4]} 48. Rh5 {[%clk 0:00:16.6]}
48... b6 {[%clk 0:00:02.4]} 49. Rh6 {[%clk 0:00:16.7]} 49... b5 {[%clk
0:00:02.2]} 50. cxb5 {[%clk 0:00:15.9]} 50... c4 {[%clk 0:00:03.1]} 51. b6
{[%clk 0:00:12.3]} 1-0

[Event "*** Titled Tuesday Blitz"]
[Site "Chess.com"]
[Date "2020.05.12"]
[Round "3"]
[White "willc-h99"]
[Black "GMartin_Petrov"]
[Result "0-1"]
[WhiteElo "2384"]
[BlackElo "2583"]
[TimeControl "180+1"]
[EndTime "10:29:03 PDT"]
[Termination "GMartin_Petrov won on time"]

1. c4 {[%clk 0:03:00.9]} 1... Nf6 {[%clk 0:02:59]} 2. g3 {[%clk 0:03:01.1]} 2...
e6 {[%clk 0:02:59.1]} 3. Bg2 {[%clk 0:03:01.4]} 3... d5 {[%clk 0:02:59.8]} 4.
Nf3 {[%clk 0:03:02.1]} 4... Be7 {[%clk 0:02:59.8]} 5. O-O {[%clk 0:03:02.3]}
5... O-O {[%clk 0:03:00.2]} 6. b3 {[%clk 0:03:02.9]} 6... c5 {[%clk 0:02:59.2]}
7. cxd5 {[%clk 0:03:02.2]} 7... Nxd5 {[%clk 0:02:56.8]} 8. Bb2 {[%clk
0:02:56.8]} 8... Nc6 {[%clk 0:02:56.4]} 9. d4 {[%clk 0:02:56.9]} 9... cxd4
{[%clk 0:02:39.5]} 10. Nxd4 {[%clk 0:02:56]} 10... Nxd4 {[%clk 0:02:39.1]} 11.
Qxd4 {[%clk 0:02:55.6]} 11... Bf6 {[%clk 0:02:38.3]} 12. Qd2 {[%clk 0:02:55.7]}
12... Bxb2 {[%clk 0:02:19.2]} 13. Qxb2 {[%clk 0:02:56.6]} 13... Bd7 {[%clk
0:02:10.1]} 14. Bxd5 {[%clk 0:02:39.7]} 14... exd5 {[%clk 0:02:11]} 15. Rd1
{[%clk 0:02:37.7]} 15... Bc6 {[%clk 0:02:04.9]} 16. Qd4 {[%clk 0:02:34.6]} 16...
Re8 {[%clk 0:02:03.6]} 17. Nc3 {[%clk 0:02:34.5]} 17... Qe7 {[%clk 0:01:57.9]}
18. e3 {[%clk 0:02:28.7]} 18... Qe6 {[%clk 0:01:52.5]} 19. Rd2 {[%clk
0:02:24.7]} 19... a6 {[%clk 0:01:50.4]} 20. Ne2 {[%clk 0:02:17.3]} 20... Rad8
{[%clk 0:01:49.1]} 21. Rad1 {[%clk 0:02:05.9]} 21... h6 {[%clk 0:01:41.9]} 22.
Qf4 {[%clk 0:01:42.3]} 22... g5 {[%clk 0:01:32.6]} 23. Qd4 {[%clk 0:01:40.9]}
23... Qf5 {[%clk 0:01:31]} 24. Nc3 {[%clk 0:01:25.1]} 24... Qf3 {[%clk
0:01:27.9]} 25. Rd3 {[%clk 0:00:45.2]} 25... h5 {[%clk 0:00:44.9]} 26. h4 {[%clk
0:00:39.4]} 26... gxh4 {[%clk 0:00:42.4]} 27. Qxh4 {[%clk 0:00:38.3]} 27... Qf5
{[%clk 0:00:25.4]} 28. Rd4 {[%clk 0:00:35.6]} 28... Rd6 {[%clk 0:00:23.9]} 29.
Ne2 {[%clk 0:00:31.7]} 29... Rg6 {[%clk 0:00:22.3]} 30. Nf4 {[%clk 0:00:30.2]}
30... Rg4 {[%clk 0:00:22.2]} 31. Qxh5 {[%clk 0:00:29.3]} 31... Rxf4 {[%clk
0:00:22]} 32. Qh6 {[%clk 0:00:14.7]} 32... Rxd4 {[%clk 0:00:18]} 33. Rxd4 {[%clk
0:00:15.6]} 33... Re4 {[%clk 0:00:17.6]} 34. Rd1 {[%clk 0:00:15.3]} 34... Rg4
{[%clk 0:00:17.2]} 35. Kg2 {[%clk 0:00:13.6]} 35... d4+ {[%clk 0:00:16.7]} 36.
Kf1 {[%clk 0:00:13.2]} 36... Qf3 {[%clk 0:00:12.9]} 37. Rxd4 {[%clk 0:00:08]}
37... Rxd4 {[%clk 0:00:12.6]} 38. Qg5+ {[%clk 0:00:07.5]} 38... Kf8 {[%clk
0:00:11.4]} 39. Qc5+ {[%clk 0:00:07.4]} 39... Kg8 {[%clk 0:00:09.2]} 40. Qg5+
{[%clk 0:00:06.7]} 40... Kf8 {[%clk 0:00:08.4]} 41. Qc5+ {[%clk 0:00:06.5]}
41... Ke8 {[%clk 0:00:08.9]} 42. Qxd4 {[%clk 0:00:06.5]} 42... Qh1+ {[%clk
0:00:08.8]} 43. Ke2 {[%clk 0:00:05.6]} 43... Bf3+ {[%clk 0:00:09.7]} 44. Kd2
{[%clk 0:00:03.1]} 44... Qd1+ {[%clk 0:00:09.8]} 45. Kc3 {[%clk 0:00:03.6]}
45... Qxd4+ {[%clk 0:00:08.7]} 46. Kxd4 {[%clk 0:00:04.5]} 46... Ke7 {[%clk
0:00:09.1]} 47. Ke5 {[%clk 0:00:03.5]} 47... f6+ {[%clk 0:00:07.2]} 48. Kd4
{[%clk 0:00:01]} 48... Ke6 {[%clk 0:00:06.4]} 49. b4 {[%clk 0:00:01.3]} 49... b6
{[%clk 0:00:06.2]} 50. a3 {[%clk 0:00:01.7]} 50... Kf5 {[%clk 0:00:04.7]} 0-1

[Event "*** Titled Tuesday Blitz"]
[Site "Chess.com"]
[Date "2020.05.12"]
[Round "3"]
[White "Vuk2000"]
[Black "crescentmoon2411"]
[Result "1-0"]
[WhiteElo "2631"]
[BlackElo "2797"]
[TimeControl "180+1"]
[EndTime "10:29:04 PDT"]
[Termination "Vuk2000 won by resignation"]

1. e4 {[%clk 0:03:00.9]} 1... c5 {[%clk 0:02:57.4]} 2. Nc3 {[%clk 0:02:59.1]}
2... Nc6 {[%clk 0:02:54.3]} 3. g3 {[%clk 0:02:59.3]} 3... g6 {[%clk 0:02:52.7]}
4. d3 {[%clk 0:02:58]} 4... Bg7 {[%clk 0:02:52.2]} 5. Be3 {[%clk 0:02:58.2]}
5... d6 {[%clk 0:02:50.6]} 6. Qd2 {[%clk 0:02:54.1]} 6... Nf6 {[%clk 0:02:48.9]}
7. Bh6 {[%clk 0:02:52.1]} 7... Bxh6 {[%clk 0:02:42.1]} 8. Qxh6 {[%clk 0:02:53]}
8... Nd4 {[%clk 0:02:32.5]} 9. Qd2 {[%clk 0:02:48.6]} 9... h5 {[%clk 0:02:21.4]}
10. h3 {[%clk 0:02:44.9]} 10... e5 {[%clk 0:02:11.5]} 11. Bg2 {[%clk 0:02:43.3]}
11... h4 {[%clk 0:02:05.7]} 12. g4 {[%clk 0:02:41.4]} 12... Be6 {[%clk 0:02:05]}
13. Nce2 {[%clk 0:02:38]} 13... Nd7 {[%clk 0:02:00.7]} 14. f4 {[%clk 0:02:31.1]}
14... exf4 {[%clk 0:01:58.8]} 15. Nxf4 {[%clk 0:02:30.8]} 15... Ne5 {[%clk
0:01:58.2]} 16. c3 {[%clk 0:02:28.3]} 16... Ndc6 {[%clk 0:01:56.8]} 17. Nge2
{[%clk 0:02:24.8]} 17... g5 {[%clk 0:01:38.9]} 18. Nxe6 {[%clk 0:02:21.9]} 18...
fxe6 {[%clk 0:01:39.2]} 19. O-O {[%clk 0:02:21.4]} 19... Ng6 {[%clk 0:01:29.3]}
20. d4 {[%clk 0:02:16.5]} 20... cxd4 {[%clk 0:01:24.6]} 21. cxd4 {[%clk
0:01:53.6]} 21... Rf8 {[%clk 0:01:12.8]} 22. e5 {[%clk 0:01:05.7]} 22... dxe5
{[%clk 0:01:08.4]} 23. Bxc6+ {[%clk 0:01:01.8]} 23... bxc6 {[%clk 0:01:08.3]}
24. Qc2 {[%clk 0:01:02]} 24... Nf4 {[%clk 0:01:05.9]} 25. Qxc6+ {[%clk
0:00:58.9]} 25... Ke7 {[%clk 0:01:02.6]} 26. Qc5+ {[%clk 0:00:53.6]} 26... Qd6
{[%clk 0:01:02.5]} 27. Nxf4 {[%clk 0:00:52.3]} 27... Rxf4 {[%clk 0:00:53]} 28.
Rxf4 {[%clk 0:00:47.1]} 28... gxf4 {[%clk 0:00:46.4]} 29. Qxe5 {[%clk
0:00:45.9]} 29... Qxe5 {[%clk 0:00:44.1]} 30. dxe5 {[%clk 0:00:46.8]} 30... Rc8
{[%clk 0:00:32.7]} 31. Rf1 {[%clk 0:00:22.9]} 31... Rc4 {[%clk 0:00:32.4]} 32.
Kg2 {[%clk 0:00:20.4]} 32... Kf7 {[%clk 0:00:16.3]} 33. Kf3 {[%clk 0:00:20]}
33... Kg6 {[%clk 0:00:16.6]} 34. Rd1 {[%clk 0:00:19.8]} 34... Rc2 {[%clk
0:00:12.4]} 35. Kxf4 {[%clk 0:00:18.1]} 35... Rxb2 {[%clk 0:00:12.3]} 36. Rd6
{[%clk 0:00:16.2]} 36... Rb4+ {[%clk 0:00:12.4]} 37. Kf3 {[%clk 0:00:14.9]}
37... Ra4 {[%clk 0:00:12.7]} 38. Rxe6+ {[%clk 0:00:14.5]} 38... Kg5 {[%clk
0:00:13.2]} 39. Re8 {[%clk 0:00:10]} 39... Rxa2 {[%clk 0:00:11.8]} 40. Rg8+
{[%clk 0:00:09.4]} 40... Kh6 {[%clk 0:00:12.2]} 41. Rh8+ {[%clk 0:00:09.7]}
41... Kg7 {[%clk 0:00:12.4]} 42. Rxh4 {[%clk 0:00:09.8]} 42... a5 {[%clk
0:00:12.5]} 43. Rh5 {[%clk 0:00:08.2]} 43... a4 {[%clk 0:00:12.5]} 44. e6 {[%clk
0:00:06]} 44... Kf6 {[%clk 0:00:12.7]} 45. Re5 {[%clk 0:00:03.5]} 45... Ke7
{[%clk 0:00:12.1]} 46. h4 {[%clk 0:00:03.4]} 46... a3 {[%clk 0:00:11.4]} 47. h5
{[%clk 0:00:03.9]} 47... Ra1 {[%clk 0:00:11.8]} 48. Ra5 {[%clk 0:00:03.9]} 48...
Kxe6 {[%clk 0:00:11.9]} 49. Kf4 {[%clk 0:00:03.8]} 49... a2 {[%clk 0:00:11.3]}
50. Kg5 {[%clk 0:00:04.2]} 1-0

[Event "*** Titled Tuesday Blitz"]
[Site "Chess.com"]
[Date "2020.05.12"]
[Round "3"]
[White "Kezin_Roman"]
[Black "IljaJoke"]
[Result "1-0"]
[WhiteElo "2785"]
[BlackElo "2519"]
[TimeControl "180+1"]
[EndTime "10:29:04 PDT"]
[Termination "Kezin_Roman won on time"]

1. d4 {[%clk 0:03:00.9]} 1... Nf6 {[%clk 0:02:59.3]} 2. c4 {[%clk 0:03:01.1]}
2... g6 {[%clk 0:02:59.5]} 3. Nc3 {[%clk 0:03:00.4]} 3... d5 {[%clk 0:02:59.7]}
4. Nf3 {[%clk 0:02:57.7]} 4... Bg7 {[%clk 0:02:59.1]} 5. Bg5 {[%clk 0:02:58.1]}
5... Ne4 {[%clk 0:02:58.3]} 6. Bh4 {[%clk 0:02:58.6]} 6... Nxc3 {[%clk
0:02:57.8]} 7. bxc3 {[%clk 0:02:59.5]} 7... dxc4 {[%clk 0:02:58.2]} 8. Qa4+
{[%clk 0:03:00]} 8... Qd7 {[%clk 0:02:58.2]} 9. Qxc4 {[%clk 0:03:00]} 9... b6
{[%clk 0:02:57.8]} 10. e3 {[%clk 0:03:00.3]} 10... Ba6 {[%clk 0:02:54.1]} 11.
Qb3 {[%clk 0:03:00.6]} 11... Bxf1 {[%clk 0:02:53.7]} 12. Kxf1 {[%clk 0:03:01.5]}
12... c5 {[%clk 0:02:53.8]} 13. Ke2 {[%clk 0:03:01.6]} 13... O-O {[%clk
0:02:40]} 14. Rhd1 {[%clk 0:03:01.7]} 14... Nc6 {[%clk 0:02:37.7]} 15. Rac1
{[%clk 0:02:59.1]} 15... Na5 {[%clk 0:02:19.4]} 16. Qb1 {[%clk 0:02:58.1]} 16...
cxd4 {[%clk 0:02:16.3]} 17. cxd4 {[%clk 0:02:56.7]} 17... Rac8 {[%clk 0:02:16]}
18. Kf1 {[%clk 0:02:55.7]} 18... Qe6 {[%clk 0:02:11.1]} 19. d5 {[%clk
0:02:35.7]} 19... Qd7 {[%clk 0:02:07.8]} 20. e4 {[%clk 0:02:32.6]} 20... Rc4
{[%clk 0:02:03.6]} 21. Rxc4 {[%clk 0:02:28.8]} 21... Nxc4 {[%clk 0:02:04.5]} 22.
Qb4 {[%clk 0:02:28.5]} 22... Nd6 {[%clk 0:01:51.3]} 23. Rc1 {[%clk 0:01:38.2]}
23... Rc8 {[%clk 0:01:34.7]} 24. Rxc8+ {[%clk 0:01:35.8]} 24... Qxc8 {[%clk
0:01:35.6]} 25. Bg5 {[%clk 0:00:12.8]} 25... h6 {[%clk 0:01:32.3]} 26. Bf4
{[%clk 0:00:09.1]} 26... Qc2 {[%clk 0:01:17.4]} 27. Bxd6 {[%clk 0:00:08]} 27...
exd6 {[%clk 0:01:09.8]} 28. g3 {[%clk 0:00:06.8]} 28... h5 {[%clk 0:00:51.5]}
29. Kg2 {[%clk 0:00:05.6]} 29... a5 {[%clk 0:00:36.2]} 30. Qxd6 {[%clk
0:00:04.9]} 30... Qxe4 {[%clk 0:00:36.6]} 31. Qd8+ {[%clk 0:00:04.7]} 31... Kh7
{[%clk 0:00:36.4]} 32. d6 {[%clk 0:00:04.7]} 32... Qd5 {[%clk 0:00:28.6]} 33. d7
{[%clk 0:00:04]} 33... g5 {[%clk 0:00:29]} 34. Qe7 {[%clk 0:00:03.4]} 34... g4
{[%clk 0:00:06.9]} 35. d8=Q {[%clk 0:00:03.7]} 35... gxf3+ {[%clk 0:00:07.1]}
36. Kg1 {[%clk 0:00:04]} 36... Qxa2 {[%clk 0:00:07.2]} 37. Qd3+ {[%clk
0:00:04.1]} 37... Kg8 {[%clk 0:00:05.8]} 38. Qxf3 {[%clk 0:00:05]} 38... Qb1+
{[%clk 0:00:04.9]} 39. Kg2 {[%clk 0:00:05.4]} 39... Qg6 {[%clk 0:00:05.5]} 40.
Qee4 {[%clk 0:00:05.5]} 40... Qd6 {[%clk 0:00:05.2]} 41. Qa8+ {[%clk 0:00:05.5]}
41... Kh7 {[%clk 0:00:05.3]} 42. Qad5 {[%clk 0:00:06.4]} 42... Qf6 {[%clk
0:00:05.4]} 43. Qfxh5+ {[%clk 0:00:06.2]} 43... Kg8 {[%clk 0:00:05.1]} 44. Qhf3
{[%clk 0:00:07.1]} 44... Qg6 {[%clk 0:00:05.3]} 45. Qd8+ {[%clk 0:00:06.4]}
45... Kh7 {[%clk 0:00:04.3]} 46. Qh4+ {[%clk 0:00:07.3]} 46... Kg8 {[%clk
0:00:04.5]} 47. Qhe4 {[%clk 0:00:08.2]} 47... Qd6 {[%clk 0:00:04]} 48. Qff5
{[%clk 0:00:08.5]} 48... a4 {[%clk 0:00:03.5]} 49. Qe8+ {[%clk 0:00:08.6]} 49...
Bf8 {[%clk 0:00:03.7]} 50. Qexf7+ {[%clk 0:00:08.7]} 1-0

[Event "*** Titled Tuesday Blitz"]
[Site "Chess.com"]
[Date "2020.05.12"]
[Round "3"]
[White "SharapovEvgeny"]
[Black "MilanovicDan"]
[Result "0-1"]
[WhiteElo "2374"]
[BlackElo "2570"]
[TimeControl "180+1"]
[EndTime "10:29:05 PDT"]
[Termination "MilanovicDan won by resignation"]

1. e4 {[%clk 0:02:59.6]} 1... d5 {[%clk 0:02:57.1]} 2. exd5 {[%clk 0:02:58.9]}
2... Qxd5 {[%clk 0:02:57.1]} 3. Nc3 {[%clk 0:02:58.3]} 3... Qd6 {[%clk
0:02:57.1]} 4. d4 {[%clk 0:02:57.7]} 4... Nf6 {[%clk 0:02:57.5]} 5. Nf3 {[%clk
0:02:57.3]} 5... c6 {[%clk 0:02:56.9]} 6. Be3 {[%clk 0:02:56.8]} 6... Bg4 {[%clk
0:02:55.5]} 7. Qd2 {[%clk 0:02:56.7]} 7... Bxf3 {[%clk 0:02:54.2]} 8. gxf3
{[%clk 0:02:56.3]} 8... e6 {[%clk 0:02:51.3]} 9. O-O-O {[%clk 0:02:55.7]} 9...
Nbd7 {[%clk 0:02:51]} 10. Ne4 {[%clk 0:02:55.1]} 10... Qb4 {[%clk 0:02:40.3]}
11. c3 {[%clk 0:02:51.9]} 11... Qa4 {[%clk 0:02:39.7]} 12. Kb1 {[%clk
0:02:50.7]} 12... Be7 {[%clk 0:02:36.5]} 13. Bd3 {[%clk 0:02:49.1]} 13... O-O-O
{[%clk 0:02:29.5]} 14. Rhg1 {[%clk 0:02:47]} 14... g6 {[%clk 0:02:22.9]} 15. Qc2
{[%clk 0:02:44.3]} 15... Qxc2+ {[%clk 0:02:17.1]} 16. Kxc2 {[%clk 0:02:43.5]}
16... Nd5 {[%clk 0:02:10.4]} 17. a3 {[%clk 0:02:29.2]} 17... e5 {[%clk
0:01:58.9]} 18. c4 {[%clk 0:02:18.9]} 18... Nxe3+ {[%clk 0:01:54.3]} 19. fxe3
{[%clk 0:02:18.7]} 19... f5 {[%clk 0:01:35.9]} 20. Ng5 {[%clk 0:02:16.9]} 20...
Bxg5 {[%clk 0:01:35.6]} 21. Rxg5 {[%clk 0:02:15.1]} 21... exd4 {[%clk
0:01:35.5]} 22. exd4 {[%clk 0:02:14.6]} 22... Nf6 {[%clk 0:01:35.5]} 23. Kc3
{[%clk 0:02:05.6]} 23... Rhe8 {[%clk 0:01:34.4]} 24. Rgg1 {[%clk 0:02:04.6]}
24... Re3 {[%clk 0:01:31.6]} 25. Rgf1 {[%clk 0:02:01.2]} 25... Rde8 {[%clk
0:01:27.8]} 26. Kd2 {[%clk 0:01:58.5]} 26... Kc7 {[%clk 0:00:50.4]} 27. Rde1
{[%clk 0:01:57.6]} 27... Rxe1 {[%clk 0:00:48.8]} 28. Rxe1 {[%clk 0:01:57.4]}
28... Rxe1 {[%clk 0:00:48.1]} 29. Kxe1 {[%clk 0:01:57.2]} 29... Kd6 {[%clk
0:00:35.8]} 30. f4 {[%clk 0:01:53.1]} 30... Nh5 {[%clk 0:00:33.5]} 31. Kf2
{[%clk 0:01:48.5]} 31... Nxf4 {[%clk 0:00:33.2]} 32. Bf1 {[%clk 0:01:48.5]}
32... Ne6 {[%clk 0:00:29.2]} 33. Ke3 {[%clk 0:01:47.9]} 33... b6 {[%clk
0:00:18.4]} 34. b4 {[%clk 0:01:45.2]} 34... Nc7 {[%clk 0:00:18.3]} 35. h4 {[%clk
0:01:41.7]} 35... b5 {[%clk 0:00:16.9]} 36. c5+ {[%clk 0:01:29.1]} 36... Ke6
{[%clk 0:00:16.1]} 37. Bg2 {[%clk 0:01:28.1]} 37... Nd5+ {[%clk 0:00:16]} 38.
Kf2 {[%clk 0:01:24.8]} 38... h6 {[%clk 0:00:15.1]} 39. Bf3 {[%clk 0:01:21]}
39... Ne7 {[%clk 0:00:12.5]} 40. Ke3 {[%clk 0:01:19]} 40... Nd5+ {[%clk
0:00:11.8]} 41. Kf2 {[%clk 0:01:18.6]} 41... a6 {[%clk 0:00:11.8]} 42. Bg2
{[%clk 0:01:15.6]} 42... g5 {[%clk 0:00:11.3]} 43. hxg5 {[%clk 0:01:14.8]} 43...
hxg5 {[%clk 0:00:11.3]} 44. Kg3 {[%clk 0:01:14.9]} 44... Ne7 {[%clk 0:00:09.7]}
45. Bh1 {[%clk 0:01:13.8]} 45... Kf6 {[%clk 0:00:09.6]} 46. Bg2 {[%clk
0:01:12.7]} 46... Kg6 {[%clk 0:00:09.1]} 47. Bf3 {[%clk 0:01:11.6]} 47... Kf6
{[%clk 0:00:08.6]} 48. Bg2 {[%clk 0:01:10.8]} 48... Kg6 {[%clk 0:00:08.3]} 49.
Bh1 {[%clk 0:01:10.1]} 49... Kh5 {[%clk 0:00:07.8]} 50. Bg2 {[%clk 0:01:08.3]}
50... f4+ {[%clk 0:00:05.2]} 51. Kf3 {[%clk 0:01:04.9]} 51... Kh4 {[%clk
0:00:04.8]} 52. Bf1 {[%clk 0:01:00.7]} 52... Nd5 {[%clk 0:00:04.2]} 53. Ke4
{[%clk 0:00:57.1]} 53... g4 {[%clk 0:00:04.5]} 54. Ke5 {[%clk 0:00:56.3]} 54...
f3 {[%clk 0:00:03.1]} 55. Ke4 {[%clk 0:00:54]} 55... Kg3 {[%clk 0:00:02.4]} 56.
a4 {[%clk 0:00:53.5]} 56... Kf2 {[%clk 0:00:02.1]} 57. axb5 {[%clk 0:00:52.3]}
57... axb5 {[%clk 0:00:03]} 58. Bxb5 {[%clk 0:00:49.2]} 58... Nc3+ {[%clk
0:00:02.4]} 59. Kf4 {[%clk 0:00:48.1]} 59... Nxb5 {[%clk 0:00:03.3]} 60. Kxg4
{[%clk 0:00:47.6]} 60... Ke2 {[%clk 0:00:02.3]} 61. d5 {[%clk 0:00:47.7]} 61...
f2 {[%clk 0:00:02.8]} 62. dxc6 {[%clk 0:00:46.4]} 62... f1=Q {[%clk 0:00:03.7]}
63. c7 {[%clk 0:00:46.4]} 63... Qf8 {[%clk 0:00:04.6]} 64. c6 {[%clk 0:00:45.6]}
64... Qc8+ {[%clk 0:00:05.5]} 65. Kf4 {[%clk 0:00:45.4]} 65... Qxc7+ {[%clk
0:00:06.4]} 66. Ke4 {[%clk 0:00:45.4]} 66... Qxc6+ {[%clk 0:00:06.9]} 67. Ke5
{[%clk 0:00:45.3]} 67... Qd6+ {[%clk 0:00:07.2]} 68. Kf5 {[%clk 0:00:44.9]}
68... Qd4 {[%clk 0:00:08.1]} 0-1